{"text_format":"3","workbook":"xlsx","n_sheets":1,"sheets":["APRĪKOJUMA INVENTARIZĀCIJA"],"not_rendered":{"defined_names":5},"read":"whole","date_system":"1900"}

{"sheet":"APRĪKOJUMA INVENTARIZĀCIJA","index":0,"n_rows":9,"n_cols":19,"rows_kept":9,"merged":[[0,1,0,5],[0,6,0,9],[0,10,0,12],[0,13,0,14],[2,1,2,6],[2,7,2,18]]}
[null,"APRĪKOJUMA INVENTARIZĀCIJA"]
[]
[null,"FIZISKAIS STĀVOKLIS",{"$nulls":5},"FINANŠU STĀVOKLIS"]
[null,"Līdzekļa vai sērijas numurs","Vienuma apraksts (ražotājs un modelis)","Atrašanās vieta","Stāvoklis","Piegādātājs","Atlikušais kalpošanas laiks gados ","Sākotnējā vērtība","Sākotnējā iemaksa","Iegādes vai nomas \ndatums","Aizdevuma termiņš \ngados","Aizdevuma likme","Ikmēneša maksājums","Ikmēneša pamatdarbības izmaksas","Kopējās mēneša izmaksas","Prognozētā vērtība aizdevuma termiņa beigās","Gada lineārais nolietojums","Mēneša lineārais nolietojums","Pašreizējā vērtība"]
[null,123,"Ražotājs, modelis","Galvenā filiāle","Labs","vietējais",5,{"v":30000,"d":"30,000.00 €"},{"v":5000,"d":"5,000.00 €"},{"$f":"DATE(YEAR(TODAY())-2, 1,1)","v":"2016-01-01"},4,{"v":0.1,"d":"10.00%"},{"$f":"IFERROR(IF(AND(Dati[[#This Row],[Sākotnējā vērtība]]>0,Dati[[#This Row],[Sākotnējā vērtība]]<>Dati[[#This Row],[Sākotnējā iemaksa]]),-1*PMT(Dati[[#This Row],[Aizdevuma likme]]/12,Dati[[#This Row],[Aizdevuma termiņš \ngados]]*12,Dati[[#This Row],[Sākotnējā vērtība]]-Dati[[#This Row],[Sākotnējā iemaksa]]),0),0)","v":{"v":634.0645858686797,"d":"634.06 €"}},{"v":200,"d":"200.00 €"},{"$f":"IFERROR(Dati[[#This Row],[Ikmēneša pamatdarbības izmaksas]]+Dati[[#This Row],[Ikmēneša maksājums]],\"\")","v":{"v":834.0645858686797,"d":"834.06 €"}},{"v":20000,"d":"20,000.00 €"},{"$f":"IFERROR(IF(Dati[[#This Row],[Sākotnējā vērtība]]>0,SLN(Dati[[#This Row],[Sākotnējā vērtība]],Dati[[#This Row],[Prognozētā vērtība aizdevuma termiņa beigās]],Dati[[#This Row],[Atlikušais kalpošanas laiks gados ]]),0),0)","v":{"v":2000,"d":"2,000.00 €"}},{"$f":"IFERROR(Dati[[#This Row],[Gada lineārais nolietojums]]/12,0)","v":{"v":166.66666666666666,"d":"166.67 €"}},{"$f":"IFERROR(Dati[[#This Row],[Sākotnējā vērtība]]-(Dati[[#This Row],[Gada lineārais nolietojums]]*((TODAY()-Dati[[#This Row],[Iegādes vai nomas \ndatums]])/365)),0)","v":{"v":25013.698630136987,"d":"25,013.70 €"}}]
[null,456,"Ražotājs, modelis","Galvenā filiāle","Izcils","vietējais",3,{"v":5000,"d":"5,000.00 €"},{"v":5000,"d":"5,000.00 €"},{"$f":"DATE(YEAR(TODAY())-1, 1,1)","v":"2017-01-01"},null,null,{"$f":"IFERROR(IF(AND(Dati[[#This Row],[Sākotnējā vērtība]]>0,Dati[[#This Row],[Sākotnējā vērtība]]<>Dati[[#This Row],[Sākotnējā iemaksa]]),-1*PMT(Dati[[#This Row],[Aizdevuma likme]]/12,Dati[[#This Row],[Aizdevuma termiņš \ngados]]*12,Dati[[#This Row],[Sākotnējā vērtība]]-Dati[[#This Row],[Sākotnējā iemaksa]]),0),0)","v":{"v":0,"d":"0.00 €"}},{"v":20,"d":"20.00 €"},{"$f":"IFERROR(Dati[[#This Row],[Ikmēneša pamatdarbības izmaksas]]+Dati[[#This Row],[Ikmēneša maksājums]],\"\")","v":{"v":20,"d":"20.00 €"}},null,{"$f":"IFERROR(IF(Dati[[#This Row],[Sākotnējā vērtība]]>0,SLN(Dati[[#This Row],[Sākotnējā vērtība]],Dati[[#This Row],[Prognozētā vērtība aizdevuma termiņa beigās]],Dati[[#This Row],[Atlikušais kalpošanas laiks gados ]]),0),0)","v":{"v":1666.6666666666667,"d":"1,666.67 €"}},{"$f":"IFERROR(Dati[[#This Row],[Gada lineārais nolietojums]]/12,0)","v":{"v":138.88888888888889,"d":"138.89 €"}},{"$f":"IFERROR(Dati[[#This Row],[Sākotnējā vērtība]]-(Dati[[#This Row],[Gada lineārais nolietojums]]*((TODAY()-Dati[[#This Row],[Iegādes vai nomas \ndatums]])/365)),0)","v":{"v":2515.981735159817,"d":"2,515.98 €"}}]
[null,789,"Ražotājs, modelis","Austrumu piekrastes filiāle","Apmierinošs","vietējais",6,{"v":50000,"d":"50,000.00 €"},{"v":20000,"d":"20,000.00 €"},{"$f":"TODAY()","v":"2018-06-29"},5,{"v":0.05,"d":"5.00%"},{"$f":"IFERROR(IF(AND(Dati[[#This Row],[Sākotnējā vērtība]]>0,Dati[[#This Row],[Sākotnējā vērtība]]<>Dati[[#This Row],[Sākotnējā iemaksa]]),-1*PMT(Dati[[#This Row],[Aizdevuma likme]]/12,Dati[[#This Row],[Aizdevuma termiņš \ngados]]*12,Dati[[#This Row],[Sākotnējā vērtība]]-Dati[[#This Row],[Sākotnējā iemaksa]]),0),0)","v":{"v":566.137009320328,"d":"566.14 €"}},{"v":40,"d":"40.00 €"},{"$f":"IFERROR(Dati[[#This Row],[Ikmēneša pamatdarbības izmaksas]]+Dati[[#This Row],[Ikmēneša maksājums]],\"\")","v":{"v":606.137009320328,"d":"606.14 €"}},{"v":1500,"d":"1,500.00 €"},{"$f":"IFERROR(IF(Dati[[#This Row],[Sākotnējā vērtība]]>0,SLN(Dati[[#This Row],[Sākotnējā vērtība]],Dati[[#This Row],[Prognozētā vērtība aizdevuma termiņa beigās]],Dati[[#This Row],[Atlikušais kalpošanas laiks gados ]]),0),0)","v":{"v":8083.333333333333,"d":"8,083.33 €"}},{"$f":"IFERROR(Dati[[#This Row],[Gada lineārais nolietojums]]/12,0)","v":{"v":673.6111111111111,"d":"673.61 €"}},{"$f":"IFERROR(Dati[[#This Row],[Sākotnējā vērtība]]-(Dati[[#This Row],[Gada lineārais nolietojums]]*((TODAY()-Dati[[#This Row],[Iegādes vai nomas \ndatums]])/365)),0)","v":{"v":50000,"d":"50,000.00 €"}}]
[{"$nulls":12},{"$f":"IFERROR(IF(AND(Dati[[#This Row],[Sākotnējā vērtība]]>0,Dati[[#This Row],[Sākotnējā vērtība]]<>Dati[[#This Row],[Sākotnējā iemaksa]]),-1*PMT(Dati[[#This Row],[Aizdevuma likme]]/12,Dati[[#This Row],[Aizdevuma termiņš \ngados]]*12,Dati[[#This Row],[Sākotnējā vērtība]]-Dati[[#This Row],[Sākotnējā iemaksa]]),0),0)","v":{"v":0,"d":"0.00 €"}},null,{"$f":"IFERROR(Dati[[#This Row],[Ikmēneša pamatdarbības izmaksas]]+Dati[[#This Row],[Ikmēneša maksājums]],\"\")","v":{"v":0,"d":"0.00 €"}},null,{"$f":"IFERROR(IF(Dati[[#This Row],[Sākotnējā vērtība]]>0,SLN(Dati[[#This Row],[Sākotnējā vērtība]],Dati[[#This Row],[Prognozētā vērtība aizdevuma termiņa beigās]],Dati[[#This Row],[Atlikušais kalpošanas laiks gados ]]),0),0)","v":{"v":0,"d":"0.00 €"}},{"$f":"IFERROR(Dati[[#This Row],[Gada lineārais nolietojums]]/12,0)","v":{"v":0,"d":"0.00 €"}},{"$f":"IFERROR(Dati[[#This Row],[Sākotnējā vērtība]]-(Dati[[#This Row],[Gada lineārais nolietojums]]*((TODAY()-Dati[[#This Row],[Iegādes vai nomas \ndatums]])/365)),0)","v":{"v":0,"d":"0.00 €"}}]
[{"$nulls":12},{"$f":"IFERROR(IF(AND(Dati[[#This Row],[Sākotnējā vērtība]]>0,Dati[[#This Row],[Sākotnējā vērtība]]<>Dati[[#This Row],[Sākotnējā iemaksa]]),-1*PMT(Dati[[#This Row],[Aizdevuma likme]]/12,Dati[[#This Row],[Aizdevuma termiņš \ngados]]*12,Dati[[#This Row],[Sākotnējā vērtība]]-Dati[[#This Row],[Sākotnējā iemaksa]]),0),0)","v":{"v":0,"d":"0.00 €"}},null,{"$f":"IFERROR(Dati[[#This Row],[Ikmēneša pamatdarbības izmaksas]]+Dati[[#This Row],[Ikmēneša maksājums]],\"\")","v":{"v":0,"d":"0.00 €"}},null,{"$f":"IFERROR(IF(Dati[[#This Row],[Sākotnējā vērtība]]>0,SLN(Dati[[#This Row],[Sākotnējā vērtība]],Dati[[#This Row],[Prognozētā vērtība aizdevuma termiņa beigās]],Dati[[#This Row],[Atlikušais kalpošanas laiks gados ]]),0),0)","v":{"v":0,"d":"0.00 €"}},{"$f":"IFERROR(Dati[[#This Row],[Gada lineārais nolietojums]]/12,0)","v":{"v":0,"d":"0.00 €"}},{"$f":"IFERROR(Dati[[#This Row],[Sākotnējā vērtība]]-(Dati[[#This Row],[Gada lineārais nolietojums]]*((TODAY()-Dati[[#This Row],[Iegādes vai nomas \ndatums]])/365)),0)","v":{"v":0,"d":"0.00 €"}}]